bitfinex/quotes_SOLUSD_20240713
["timestamp","ask_amount","ask_price","bid_price","bid_amount"]
[1720893216220,4.19539982,140.14,140.11,11.99]
[1720893216448,4.19539982,140.13,140.11,11.99]
[1720893216624,11.99,140.16,140.11,11.99]
[1720893216822,4.1955026,140.15,140.11,11.99]
[1720893217020,4.1955026,140.14,140.11,11.99]
[1720893217227,4.1955026,140.13,140.11,11.99]
[1720893217535,11.99,140.16,140.11,11.99]
[1720893217735,4.19549456,140.15,140.11,11.99]
[1720893217935,4.19549456,140.14,140.11,11.99]
[1720893218529,4.19549456,140.15,140.11,11.99]
[1720893218720,4.19549456,140.14,140.11,11.99]
[1720893218916,4.19549456,140.15,140.11,11.99]
[1720893219547,4.19549992,140.14,140.11,11.99]
[1720893219848,4.19549992,140.13,140.11,11.99]
[1720893220035,21.99,140.17,140.11,11.99]
[1720893220214,4.19545576,140.16,140.11,11.99]
[1720893220413,4.19545576,140.15,140.11,11.99]
[1720893220627,4.19545576,140.14,140.11,11.99]
[1720893220943,4.19545576,140.13,140.11,11.99]
[1720893221250,21.99,140.17,140.11,11.99]
[1720893221421,4.19524485,140.16,140.11,11.99]
[1720893221627,4.19524485,140.15,140.11,11.99]
[1720893221839,4.19524485,140.16,140.11,11.99]
[1720893222139,4.19524485,140.15,140.11,11.99]
[1720893222349,4.19524485,140.16,140.11,11.99]
[1720893222642,4.19524485,140.15,140.11,11.99]
[1720893222944,21.99,140.17,140.11,11.99]
[1720893223127,4.1954504,140.16,140.11,11.99]
[1720893224336,16.1854504,140.16,140.11,11.99]
[1720893224540,4.1954504,140.15,140.11,11.99]
[1720893226258,11.99,140.16,140.11,11.99]
[1720893226543,4.19535064,140.15,140.11,11.99]
[1720893226747,4.19535064,140.14,140.11,11.99]
[1720893226929,4.19535064,140.13,140.11,11.99]
[1720893227129,11.99,140.16,140.11,11.99]
[1720893227336,4.19545342,140.15,140.11,11.99]
[1720893227542,4.19545342,140.14,140.11,11.99]
[1720893227751,4.19545342,140.13,140.11,11.99]
[1720893227939,21.99,140.17,140.11,11.99]
[1720893228253,4.19544538,140.16,140.11,11.99]
[1720893228428,4.19544538,140.15,140.12,11.99]
[1720893228629,4.19544538,140.14,140.12,11.99]
[1720893228850,4.19545074,140.13,140.12,11.99]
[1720893229633,4.19534796,140.13,140.12,11.99]
[1720893230654,4.19534796,140.13,140.11,11.99]
[1720893230854,11.99,140.16,140.11,11.99]
[1720893231060,4.19534528,140.15,140.11,11.99]
[1720893231237,4.19534528,140.14,140.11,11.99]
[1720893231440,4.19534528,140.13,140.11,11.99]
[1720893231742,21.99,140.17,140.11,11.99]
[1720893231952,4.19534528,140.16,140.11,11.99]
[1720893232242,4.19534528,140.15,140.11,11.99]
[1720893232453,4.19534528,140.16,140.11,11.99]
[1720893232669,4.19534528,140.15,140.11,11.99]
[1720893232851,4.19534528,140.16,140.11,11.99]
[1720893233050,4.19535064,140.15,140.11,11.99]
[1720893233241,4.19535064,140.14,140.11,11.99]
[1720893233441,4.19535064,140.16,140.11,11.99]
[1720893234159,4.19535064,140.16,140.13,11.99]
[1720893234472,4.19535064,140.15,140.13,11.99]
[1720893234668,4.19535064,140.18,140.13,11.99]
[1720893234851,16.18535064,140.18,140.13,11.99]
[1720893235049,4.19535064,140.17,140.13,11.99]
[1720893236278,11.99,140.18,140.09,21.3924]
[1720893236455,4.19820692,140.17,140.12,11.99]
[1720893236668,11.99,140.18,140.12,11.99]
[1720893236968,4.19820424,140.17,140.12,11.99]
[1720893237142,4.19820424,140.16,140.12,11.99]
[1720893237343,4.19820424,140.15,140.12,11.99]
[1720893237537,11.99,140.17,140.12,11.99]
[1720893237769,4.19830432,140.16,140.12,11.99]
[1720893238066,4.19830432,140.15,140.12,11.99]
[1720893238255,11.99,140.17,140.12,11.99]
[1720893238455,4.19829896,140.16,140.12,11.99]
[1720893238669,4.19829896,140.15,140.12,11.99]
[1720893238969,11.99,140.17,140.12,11.99]
[1720893239172,4.19830432,140.16,140.12,11.99]
[1720893239354,4.19830432,140.15,140.12,11.99]
[1720893239669,11.99,140.17,140.12,11.99]
[1720893239848,4.19830432,140.16,140.12,11.99]
[1720893240048,4.19830432,140.15,140.12,11.99]
[1720893240264,11.99,140.17,140.12,11.99]
[1720893240572,4.19819889,140.16,140.13,11.99]
[1720893240749,4.19819889,140.15,140.13,11.99]
[1720893240950,4.19819889,140.17,140.13,11.99]
[1720893241269,4.19820692,140.16,140.13,11.99]
[1720893241478,4.19820692,140.15,140.13,11.99]
[1720893241653,11.99,140.18,140.13,11.99]
[1720893241852,4.19820156,140.17,140.13,11.99]
[1720893242069,4.19820156,140.16,140.13,11.99]
[1720893242266,21.99,140.17,140.09,21.3924]
[1720893242566,4.19740358,140.16,140.12,11.99]
[1720893242758,4.19740358,140.15,140.12,11.99]
[1720893242940,4.19740358,140.14,140.12,11.99]
[1720893243144,21.99,140.17,140.12,11.99]
[1720893243458,4.1965308,140.16,140.12,11.99]
[1720893243660,4.1965308,140.15,140.12,11.99]
[1720893243854,4.1965308,140.14,140.12,11.99]
[1720893244075,4.1965308,140.16,140.12,11.99]
[1720893244252,4.19723677,140.15,140.12,11.99]
[1720893244452,4.19723677,140.14,140.12,11.99]
[1720893244676,21.99,140.17,140.12,11.99]
[1720893244874,4.1973315,140.16,140.12,11.99]
[1720893245075,4.1973315,140.15,140.12,11.99]
[1720893245377,10.0,140.17,140.12,11.99]
[1720893245675,4.19743962,140.16,140.12,11.99]
[1720893245977,4.19743962,140.15,140.12,11.99]
[1720893246155,4.19663624,140.14,140.12,11.99]
[1720893246357,10.0,140.17,140.12,11.99]
[1720893246574,4.19663892,140.16,140.12,11.99]
[1720893246869,4.19663892,140.15,140.12,11.99]
[1720893247078,4.19663892,140.14,140.12,11.99]
[1720893247273,10.0,140.17,140.12,11.99]
[1720893247479,4.19643874,140.16,140.11,11.99]
[1720893247673,4.19643874,140.15,140.11,11.99]
[1720893247860,4.19643874,140.14,140.11,11.99]
[1720893248060,11.99,140.16,140.11,11.99]
[1720893248278,11.99,140.16,140.09,21.3924]
[1720893248450,4.19633329,140.15,140.1,11.99]
[1720893248657,4.19633329,140.14,140.1,11.99]
[1720893248975,4.19582478,140.13,140.1,11.99]
[1720893249174,11.99,140.15,140.1,11.99]
[1720893249481,4.19582746,140.14,140.1,11.99]
[1720893249780,4.19582746,140.13,140.09,15.3361]
[1720893249983,11.99,140.13,140.09,15.3361]
[1720893250499,21.99,140.15,140.1,11.99]
[1720893250789,4.19574935,140.14,140.1,11.99]
[1720893250989,21.99,140.15,140.1,11.99]
[1720893250990,4.19574935,140.13,140.1,11.99]
[1720893251154,21.99,140.15,140.1,11.99]
[1720893251355,4.19486922,140.14,140.09,27.3261]
[1720893251656,16.18486922,140.13,140.06,6.3505]
[1720893251859,4.19486922,140.12,140.07,11.99]
[1720893252159,11.99,140.13,140.07,11.99]
[1720893252355,4.19453478,140.12,140.07,11.99]
[1720893252681,11.99,140.13,140.07,11.99]
[1720893252881,4.19453478,140.12,140.07,11.99]
[1720893253182,11.99,140.13,140.07,11.99]
[1720893253374,4.1945321,140.12,140.07,11.99]
[1720893253574,11.99,140.13,140.07,11.99]
[1720893253876,4.19453522,140.12,140.07,11.99]
[1720893254189,11.99,140.13,140.07,11.99]
[1720893254366,4.19453254,140.12,140.07,11.99]
[1720893254573,11.99,140.13,140.07,11.99]
[1720893255383,4.19453522,140.12,140.07,11.99]
[1720893255561,11.99,140.13,140.07,11.99]
[1720893255752,4.19453522,140.12,140.07,11.99]
[1720893255956,11.99,140.13,140.07,11.99]
[1720893256154,4.19453522,140.12,140.07,11.99]
[1720893256356,11.99,140.13,140.07,11.99]
[1720893256572,4.19453254,140.12,140.07,11.99]
[1720893256778,21.99,140.13,140.06,6.3505]
[1720893257163,21.99,140.13,140.08,11.99]
[1720893257683,16.18443931,140.12,140.08,11.99]
[1720893257856,11.99,140.12,140.07,11.99]
[1720893259094,11.99,140.13,140.08,11.99]
[1720893259271,11.99,140.14,140.09,11.99]
[1720893259472,4.19573908,140.13,140.09,11.99]
[1720893259680,11.99,140.14,140.09,11.99]
[1720893259871,4.19574175,140.13,140.09,11.99]
[1720893260071,11.99,140.14,140.09,11.99]
[1720893260668,4.19594462,140.13,140.09,11.99]
[1720893260867,11.99,140.14,140.09,11.99]
[1720893261186,4.19564434,140.13,140.09,11.99]
[1720893261382,11.99,140.14,140.09,11.99]
[1720893261700,16.18534137,140.13,140.08,11.99]
[1720893261869,11.99,140.13,140.08,11.99]
[1720893266593,11.99,140.14,140.09,11.99]
[1720893266789,4.19573983,140.13,140.09,11.99]
[1720893266997,11.99,140.14,140.09,11.99]
[1720893267186,10.0,140.15,140.1,11.99]
[1720893267377,4.19604547,140.14,140.1,11.99]
[1720893267582,21.99,140.15,140.1,11.99]
[1720893267798,16.18614556,140.14,140.09,27.9136]
[1720893268089,11.99,140.14,140.09,15.9236]
[1720893269496,11.99,140.14,140.09,27.9136]
[1720893273495,4.19543954,140.13,140.09,27.9136]
[1720893273701,11.99,140.14,140.09,27.9136]
[1720893273900,4.19543687,140.13,140.09,27.9136]
[1720893274108,11.99,140.14,140.09,27.9136]
[1720893274402,4.19543687,140.13,140.09,27.9136]
[1720893274608,11.99,140.14,140.09,27.9136]
[1720893274795,4.19480378,140.13,140.09,27.9136]
[1720893274982,11.99,140.14,140.09,27.9136]
[1720893275182,4.1951014,140.13,140.09,27.9136]
[1720893275484,11.99,140.14,140.09,27.9136]
[1720893275678,4.19573983,140.13,140.09,27.9136]
[1720893275890,4.19573983,140.13,140.09,15.9236]
[1720893276089,21.99,140.15,140.09,27.9136]
[1720893276581,4.19567533,140.14,140.09,27.9136]
[1720893276784,4.19567533,140.13,140.09,27.9136]
[1720893277095,21.99,140.15,140.09,27.9136]
[1720893277409,4.19544222,140.14,140.09,27.9136]
[1720893277611,4.19544222,140.13,140.09,27.9136]
[1720893277788,21.99,140.15,140.09,27.9136]
[1720893277989,4.19544222,140.14,140.09,27.9136]
[1720893278210,4.19544222,140.13,140.09,27.9136]
[1720893278508,21.99,140.15,140.09,27.9136]
[1720893278702,4.19544222,140.14,140.1,11.99]
[1720893278894,4.19544222,140.13,140.1,11.99]
[1720893279193,11.99,140.15,140.1,11.99]
[1720893279392,4.1953448,140.14,140.1,11.99]
[1720893279701,4.1953448,140.13,140.1,11.99]
[1720893279899,4.1953448,140.14,140.1,11.99]
[1720893280105,4.19544567,140.13,140.1,11.99]
[1720893280283,11.99,140.15,140.09,27.9136]
[1720893280483,4.19534289,140.14,140.09,27.9136]
[1720893280704,4.19534289,140.13,140.09,15.9236]
[1720893280892,11.99,140.14,140.09,27.9136]
[1720893281079,4.19534289,140.13,140.09,27.9136]
[1720893281284,11.99,140.14,140.09,27.9136]
[1720893281492,4.19534289,140.13,140.09,27.9136]
[1720893281791,11.99,140.13,140.09,15.9236]
[1720893283813,4.19454027,140.12,140.09,15.9236]
[1720893283986,11.99,140.13,140.09,15.9236]
[1720893284185,4.19488419,140.12,140.09,15.9236]
[1720893284509,11.99,140.14,140.09,15.9236]
[1720893284712,4.19488152,140.13,140.09,15.9236]
[1720893284913,11.99,140.14,140.09,15.9236]
[1720893285097,4.19534107,140.13,140.09,15.9236]
[1720893285290,4.19534107,140.12,140.09,15.9236]
[1720893285493,11.99,140.14,140.09,15.9236]
[1720893285698,4.19493799,140.13,140.09,15.9236]
[1720893286005,11.99,140.14,140.09,15.9236]
[1720893286186,4.19534374,140.13,140.09,15.9236]
[1720893286385,4.19534374,140.12,140.09,15.9236]
[1720893286688,11.99,140.14,140.09,15.9236]
[1720893286909,4.19493799,140.13,140.09,15.9236]
[1720893287108,4.19493799,140.12,140.09,15.9236]
[1720893287293,4.19493799,140.13,140.09,15.9236]
[1720893287497,4.19493799,140.12,140.09,15.9236]
[1720893287699,4.19493799,140.13,140.09,15.9236]
[1720893287899,4.19493799,140.12,140.09,15.9236]
[1720893288112,4.19493799,140.13,140.09,15.9236]
[1720893288316,4.19514087,140.12,140.09,15.9236]
[1720893288489,10.0,140.15,140.09,15.9236]
[1720893288490,11.99,140.13,140.09,15.9236]
[1720893288994,4.19514087,140.12,140.09,15.9236]
[1720893289217,11.99,140.13,140.09,15.9236]
[1720893289402,4.19533839,140.12,140.09,15.9236]
[1720893289713,11.99,140.13,140.09,15.9236]
[1720893289909,4.19493799,140.12,140.09,15.9236]
[1720893290120,11.99,140.13,140.09,15.9236]
[1720893290413,4.19533839,140.12,140.09,15.9236]
[1720893290615,11.99,140.13,140.09,15.9236]
[1720893290825,4.19513819,140.12,140.09,15.9236]
[1720893291023,11.99,140.13,140.09,15.9236]
[1720893291204,4.19544116,140.12,140.09,15.9236]
[1720893291404,11.99,140.13,140.09,15.9236]
[1720893291591,4.19494067,140.12,140.09,15.9236]
[1720893291900,11.99,140.13,140.09,15.9236]
[1720893292102,4.19493799,140.12,140.09,15.9236]
[1720893292302,11.99,140.14,140.09,15.9236]
[1720893292502,26.18493799,140.13,140.09,15.9236]
[1720893292700,4.19493799,140.12,140.09,15.9236]
[1720893293018,4.19399669,140.11,140.09,15.9236]
[1720893293215,10.0,140.13,140.09,15.9236]
[1720893293400,4.19399401,140.12,140.09,15.9236]
[1720893293599,4.19399401,140.11,140.09,15.9236]
[1720893293807,10.0,140.13,140.09,15.9236]
[1720893294008,4.19393429,140.12,140.09,15.9236]
[1720893294218,4.19393429,140.11,140.09,15.9236]
[1720893294410,4.19393429,140.12,140.09,15.9236]
[1720893296322,10.0,140.13,140.09,15.9236]
[1720893296622,4.19492149,140.12,140.09,15.9236]
[1720893296799,10.0,140.13,140.09,15.9236]
[1720893297000,4.19492417,140.12,140.09,15.9236]
[1720893297192,11.99,140.14,140.09,27.9136]
[1720893297397,4.19492149,140.13,140.09,27.9136]
[1720893297617,4.19492149,140.12,140.09,27.9136]
[1720893297798,4.19492149,140.14,140.09,27.9136]
[1720893298802,21.99,140.15,140.09,27.9136]
[1720893299002,4.19492685,140.14,140.09,27.9136]
[1720893299737,4.19532724,140.13,140.09,27.9136]
[1720893300021,4.19532724,140.12,140.09,15.9236]
[1720893300245,11.99,140.14,140.09,27.9136]
[1720893300394,4.19532724,140.13,140.09,27.9136]
[1720893300594,4.19532724,140.12,140.09,15.9236]
[1720893300831,11.99,140.14,140.09,15.9236]
[1720893301005,4.19532188,140.13,140.09,15.9236]
[1720893301205,4.19532188,140.12,140.09,15.9236]
[1720893301414,4.19532188,140.13,140.09,15.9236]
[1720893301608,4.19532188,140.12,140.09,15.9236]
[1720893301807,11.99,140.14,140.09,15.9236]
[1720893302105,4.19532724,140.13,140.09,15.9236]
[1720893302301,4.19532456,140.12,140.09,15.9236]
[1720893302507,11.99,140.14,140.09,27.9136]
[1720893302809,4.1950675,140.13,140.09,27.9136]
[1720893303012,4.1950675,140.12,140.09,27.9136]
[1720893303218,11.99,140.14,140.09,27.9136]
[1720893303422,4.19492149,140.13,140.09,27.9136]
[1720893303623,4.19492149,140.12,140.09,27.9136]
[1720893303818,4.19492149,140.13,140.09,27.9136]
[1720893304021,11.99,140.14,140.09,27.9136]
[1720893304222,3.09180815,140.13,140.09,27.9136]
[1720893304509,21.99,140.15,140.09,27.9136]
[1720893304734,3.09180862,140.14,140.1,11.99]
[1720893304936,3.09180862,140.13,140.1,11.99]
[1720893305139,21.99,140.15,140.1,11.99]
[1720893305314,3.09179031,140.14,140.1,11.99]
[1720893305716,3.09178984,140.13,140.1,11.99]
[1720893305914,21.99,140.15,140.1,11.99]
[1720893306137,3.09178936,140.14,140.1,11.99]
[1720893306344,3.09178936,140.13,140.1,11.99]
[1720893306545,3.09178936,140.14,140.1,11.99]
[1720893306841,3.09178984,140.13,140.1,11.99]
[1720893307046,21.99,140.15,140.1,11.99]
[1720893307233,3.09179031,140.14,140.1,11.99]
[1720893307410,3.09179031,140.13,140.1,11.99]
[1720893307614,21.99,140.15,140.1,11.99]
[1720893307822,3.09178936,140.14,140.1,11.99]
[1720893308014,3.09178936,140.13,140.1,11.99]
[1720893308236,21.99,140.15,140.1,11.99]
[1720893308425,3.09180719,140.14,140.1,11.99]
[1720893308621,3.09180719,140.13,140.1,11.99]
[1720893308830,3.09180719,140.14,140.1,11.99]
[1720893309027,21.99,140.15,140.1,11.99]
[1720893309344,3.09180767,140.14,140.1,11.99]
[1720893309521,3.09180767,140.13,140.1,11.99]
[1720893309736,21.99,140.15,140.09,15.9236]
[1720893309737,11.99,140.14,140.09,27.9136]
[1720893310055,3.09180815,140.13,140.09,27.9136]
[1720893310224,11.99,140.14,140.09,27.9136]
[1720893310418,3.09179079,140.13,140.09,27.9136]
[1720893310618,11.99,140.14,140.09,27.9136]
[1720893310843,3.09192989,140.13,140.09,27.9136]
[1720893311035,11.99,140.14,140.09,15.9236]
[1720893311220,3.09193346,140.13,140.09,15.9236]
[1720893311422,10.0,140.13,140.09,15.9236]
[1720893311636,3.09209398,140.12,140.09,15.9236]
[1720893311836,21.99,140.13,140.09,15.9236]
[1720893312034,3.09207662,140.12,140.09,15.9236]
[1720893312232,21.99,140.13,140.09,15.9236]
[1720893312444,3.09213093,140.12,140.09,15.9236]
[1720893312643,21.99,140.13,140.09,15.9236]
[1720893312827,3.09214925,140.12,140.09,15.9236]
[1720893313027,21.99,140.13,140.09,15.9236]
[1720893313228,3.09214883,140.12,140.09,15.9236]
[1720893313429,21.99,140.13,140.09,15.9236]
[1720893313631,15.08220369,140.12,140.09,15.9236]
[1720893313839,11.99,140.12,140.09,15.9236]
[1720893315441,21.99,140.13,140.09,15.9236]
[1720893315754,3.09207864,140.12,140.09,15.9236]
[1720893315928,21.99,140.13,140.09,15.9236]
[1720893316250,10.0,140.15,140.09,27.9136]
[1720893316554,15.08198946,140.14,140.09,27.9136]
[1720893316747,3.09198946,140.13,140.09,27.9136]
[1720893316929,11.99,140.14,140.09,27.9136]
[1720893317650,3.09206032,140.13,140.09,27.9136]
[1720893317853,11.99,140.14,140.09,15.9236]
[1720893318033,3.0920608,140.13,140.09,27.9136]
[1720893318239,10.0,140.13,140.09,15.9236]
[1720893318741,21.99,140.13,140.09,15.9236]
[1720893326768,3.09234622,140.12,140.09,15.9236]
[1720893326972,21.99,140.13,140.09,15.9236]
[1720893328058,3.09226557,140.12,140.09,15.9236]
[1720893328250,21.99,140.13,140.09,15.9236]
[1720893328453,3.09229125,140.12,140.09,15.9236]
[1720893328765,21.99,140.13,140.09,15.9236]
[1720893329070,3.09232264,140.12,140.09,15.9236]
[1720893329370,21.99,140.13,140.09,15.9236]
[1720893329567,3.09234048,140.12,140.09,15.9236]
[1720893329772,21.99,140.13,140.09,15.9236]
[1720893329948,3.09232312,140.12,140.09,15.9236]
[1720893330151,21.99,140.13,140.09,15.9236]
[1720893330354,3.09232974,140.12,140.09,15.9236]
[1720893330568,21.99,140.13,140.09,15.9236]
[1720893330872,3.09235832,140.12,140.09,15.9236]
[1720893331188,21.99,140.13,140.09,15.9236]
[1720893331348,3.09234096,140.12,140.09,15.9236]
[1720893331550,21.99,140.13,140.09,15.9236]
[1720893331748,3.09234096,140.12,140.09,15.9236]
[1720893331950,21.99,140.13,140.09,15.9236]
[1720893332661,10.0,140.13,140.09,27.9136]
[1720893335272,10.0,140.13,140.09,15.9236]
[1720893340486,21.99,140.15,140.1,11.99]
[1720893340787,10.0,140.15,140.1,11.99]
[1720893341275,21.99,140.15,140.1,11.99]
[1720893341658,10.0,140.13,140.09,15.9236]
[1720893341969,21.99,140.13,140.09,15.9236]
[1720893344082,56.48755752,140.19,140.09,15.9236]
[1720893344083,10.0,140.17,140.09,15.9236]
[1720893344287,56.48755752,140.19,140.1,11.99]
[1720893344288,21.99,140.15,140.1,11.99]
[1720893344582,11.99,140.15,140.1,11.99]
[1720893344880,21.99,140.15,140.1,11.99]
[1720893345189,11.99,140.14,140.09,27.9136]
[1720893346486,11.99,140.14,140.1,11.99]
[1720893346665,21.99,140.15,140.1,11.99]
[1720893347771,11.99,140.15,140.1,11.99]
[1720893349571,21.99,140.15,140.1,11.99]
[1720893350066,11.99,140.14,140.09,27.9136]
[1720893355366,11.99,140.14,140.09,15.9236]
[1720893355865,10.0,140.13,140.09,15.9236]
[1720893356065,10.0,140.09,140.05,16.0668]
[1720893356275,11.99,140.08,140.05,16.0668]
[1720893356766,11.99,140.07,140.05,16.0668]
[1720893357185,21.99,140.07,140.05,16.0668]
[1720893357579,11.99,140.06,140.05,16.0668]
[1720893358598,21.99,140.07,140.05,16.0668]
[1720893358773,11.99,140.07,140.05,16.0668]
[1720893360501,21.99,140.09,140.05,16.0668]
[1720893361694,11.99,140.08,140.05,16.0668]
[1720893361897,21.99,140.07,140.05,16.0668]
[1720893362077,11.99,140.07,140.05,16.0668]
[1720893362273,11.99,140.08,140.05,16.0668]
[1720893363396,11.99,140.07,140.05,16.0668]
[1720893364195,10.0,140.09,140.05,16.0668]
[1720893364399,21.99,140.09,140.05,16.0668]
[1720893364570,11.99,140.09,140.05,16.0668]
[1720893364768,10.0,140.11,140.05,16.0668]
[1720893364985,10.0,140.11,140.06,11.99]
[1720893365272,21.99,140.11,140.06,11.99]
[1720893370808,11.99,140.1,140.05,16.0668]
[1720893370989,11.99,140.1,140.05,28.0568]
[1720893371392,11.99,140.08,140.05,16.0668]
[1720893372112,11.99,140.07,140.05,16.0668]
[1720893372706,11.99,140.08,140.05,16.0668]
[1720893375385,21.99,140.07,140.05,16.0668]
[1720893375610,11.99,140.06,140.05,16.0668]
[1720893377519,11.99,140.06,140.01,16.2237]
[1720893377681,11.99,140.05,140.01,16.2237]
[1720893379513,11.99,140.04,140.01,16.2237]
[1720893379890,21.99,140.05,140.01,16.2237]
[1720893380797,10.0,140.07,140.01,28.2137]
[1720893380998,11.99,140.06,140.01,28.2137]
[1720893381208,21.99,140.05,140.01,16.2237]
[1720893382192,11.99,140.04,140.01,16.2237]
[1720893383402,10.0,140.05,140.01,16.2237]
[1720893383403,21.99,140.05,140.01,16.2237]
[1720893387400,10.0,140.03,140.01,16.2237]
[1720893387623,21.99,140.03,139.97,16.2237]
[1720893387922,21.99,140.03,139.98,11.99]
[1720893388223,21.99,140.03,139.97,16.2237]
[1720893388396,10.0,140.03,139.97,16.2237]
[1720893388597,11.99,140.02,139.97,28.2137]
[1720893389406,11.99,140.02,139.97,16.2237]
[1720893389595,11.99,140.02,139.97,28.2137]
[1720893391818,11.99,140.02,139.98,11.99]
[1720893392323,10.0,140.03,139.98,11.99]
[1720893392531,10.0,140.03,139.97,16.2237]
[1720893392532,10.0,140.05,139.97,16.2237]
[1720893392737,10.0,140.05,140.0,11.99]
[1720893393600,21.99,140.05,140.0,11.99]
[1720893397533,11.99,140.04,139.99,11.99]
[1720893397847,21.99,140.05,140.0,11.99]
[1720893402339,11.99,140.05,140.0,11.99]
[1720893402647,10.0,140.09,140.03,11.99]
[1720893402824,21.99,140.09,140.03,11.99]
[1720893403545,11.99,140.08,140.03,11.99]
[1720893404246,66.99,140.07,140.02,11.99]
[1720893404443,21.99,140.07,140.02,11.99]
[1720893404633,21.99,140.07,140.02,13.41825237]
[1720893405020,14.76551141,140.1,140.02,13.41825237]
[1720893405021,10.0,140.09,140.02,11.99]
[1720893405220,21.99,140.07,140.02,11.99]
[1720893406029,21.99,140.07,140.01,15.085]
[1720893406030,11.99,140.06,140.01,15.085]
[1720893406236,11.99,140.05,140.01,15.085]
[1720893410539,21.99,140.05,140.01,15.085]
[1720893411650,10.0,140.05,140.01,27.075]
[1720893412147,11.99,140.06,140.01,27.075]
[1720893413347,10.0,140.05,140.01,27.075]
[1720893413547,21.99,140.05,140.01,15.085]
[1720893414441,21.99,140.05,139.99,11.99]
[1720893415257,21.99,140.05,140.0,11.99]
[1720893415827,10.0,140.03,139.99,11.99]
[1720893417054,10.0,140.03,139.97,17.72058604]
[1720893417256,10.0,140.03,139.99,11.99]
[1720893420231,11.99,140.04,139.99,11.99]
[1720893420740,10.0,140.03,139.99,11.99]
[1720893420936,11.99,140.04,139.99,11.99]
[1720893423458,10.0,140.05,139.99,11.99]
[1720893423764,11.99,140.04,139.99,11.99]
[1720893424562,10.0,140.05,139.99,11.99]
[1720893424771,11.99,140.04,139.99,11.99]
[1720893426168,10.0,140.05,140.0,1.42847575]
[1720893426370,11.99,140.04,139.99,11.99]
[1720893432472,11.99,140.04,139.98,11.99]
[1720893433669,11.99,140.04,139.97,16.292]
[1720893434050,11.99,140.04,139.98,11.99]
[1720893435151,11.99,140.04,139.99,11.99]
[1720893437474,11.99,140.04,139.97,16.292]
[1720893437673,11.99,140.04,139.99,11.99]
[1720893438273,11.99,140.04,139.98,11.99]
[1720893438777,11.99,140.04,139.97,16.292]
[1720893438978,11.99,140.04,139.98,11.99]
[1720893439684,11.99,140.04,139.99,11.99]
[1720893440789,11.99,140.04,139.98,11.99]
[1720893442383,10.0,140.03,139.97,16.292]
[1720893442687,11.99,140.02,139.97,16.292]
[1720893442991,11.99,140.01,139.97,16.292]
[1720893443488,11.99,140.01,139.96,11.99]
[1720893443658,11.99,140.01,139.93,21.2815]
[1720893443858,11.99,140.0,139.93,21.2815]
[1720893444082,11.99,140.0,139.95,11.99]
[1720893444480,21.99,140.01,139.96,11.99]
[1720893447384,10.0,140.03,139.97,11.99]
[1720893447587,10.0,140.03,139.98,11.99]
[1720893447884,21.99,140.03,139.98,11.99]